[Event "Caplin Hastings Masters 2023-24"]
[Site "Hastings"]
[Date "2023.12.29"]
[Round "2.23"]
[White "Boyer, Mahel"]
[Black "Banerjee, Supratit"]
[Result "1-0"]
[ECO "A14"]
[WhiteElo "2427"]
[BlackElo "1974"]
[Annotator "ChessBase"]
[PlyCount "189"]
[EventDate "2023.12.18"]
[EventType "swiss"]
[EventCountry "ENG"]
[SourceTitle "playchess.com"]
[Source "ChessBase"]
[SourceQuality "1"]
[TimeControl "40/6000+30:3000+30"]

1. Nf3 {[%emt 0:02:08]} d5 {[%emt 0:01:22]} 2. g3 {[%emt 0:00:23]} Nf6 {[%emt 0:00:50]} 3. Bg2 {[%emt 0:00:06]} e6 {[%emt 0:00:34]} 4. O-O {[%emt 0:00:09]} Be7 {[%emt 0:00:36]} 5. c4 {[%emt 0:03:21]} O-O {[%emt 0:00:38]} 6. b3 {[%emt 0:01:43]} b6 {[%emt 0:02:47]} 7. Bb2 {[%emt 0:01:11]} Bb7 {[%emt 0:02:25]} 8. e3 {[%emt 0:00:52]} Nbd7 {[%emt 0:01:37]} 9. Nc3 {[%emt 0:01:25]} Nc5 {[%emt 0:08:52]} 10. cxd5 {[%emt 0:09:56]} Nd3 {[%emt 0:08:41]} 11. Qb1 {[%emt 0:09:04]} Nxb2 {[%emt 0:00:46]} 12. Qxb2 {[%emt 0:02:12]} Nxd5 {[%emt 0:00:54]} 13. Ne5 {[%emt 0:00:25]} Bf6 {[%emt 0:01:47]} 14. Ne4 {[%emt 0:00:03]} Be7 {[%emt 0:04:34]} 15. d4 {[%emt 0:00:55]} f6 {[%emt 0:07:39]} 16. Nd3 {[%emt 0:01:03]} Kh8 {[%emt 0:01:39]} 17. Rfd1 {[%emt 0:00:10]} a5 {[%emt 0:02:22]} 18. Rac1 {[%emt 0:00:37]} Rc8 {[%emt 0:02:24]} 19. a3 {[%emt 0:01:00]} Qd7 {[%emt 0:04:38]} 20. Nd2 {[%emt 0:00:43]} Ba6 {[%emt 0:20:05]} 21. Nc4 {[%emt 0:00:31]} b5 {[%emt 0:02:37]} 22. Nxa5 {[%emt 0:00:42]} b4 {[%emt 0:00:18]} 23. Nxb4 {[%emt 0:02:24]} Nxb4 {[%emt 0:01:10]} 24. axb4 {[%emt 0:00:05]} Bxb4 {[%emt 0:00:19]} 25. Nc6 {[%emt 0:00:06]} Bd6 {[%emt 0:03:47]} 26. e4 {[%emt 0:00:03]} Qf7 {[%emt 0:05:51]} 27. e5 {[%emt 0:04:29]} Be7 {[%emt 0:00:27]} 28. Na7 {[%emt 0:06:21]} Rce8 {[%emt 0:07:18]} 29. Qa2 {[%emt 0:01:35]} Bc8 {[%emt 0:01:05]} 30. Rxc7 {[%emt 0:00:30]} fxe5 {[%emt 0:00:22]} 31. dxe5 {[%emt 0:02:51]} Qh5 {[%emt 0:00:25]} 32. Rdc1 {[%emt 0:00:20]} Qxe5 {[%emt 0:07:46]} 33. Rxc8 {[%emt 0:04:15]} Rxc8 {[%emt 0:01:09]} 34. Rxc8 {[%emt 0:00:04]} Rxc8 {[%emt 0:00:09]} 35. Nxc8 {[%emt 0:00:02]} Bc5 {[%emt 0:00:11]} 36. Na7 {[%emt 0:00:02]} Qb8 {[%emt 0:03:28]} 37. Nc6 {[%emt 0:00:13]} Qf8 {[%emt 0:00:17]} 38. Ne5 {[%emt 0:00:06]} Bd4 {[%emt 0:00:38]} 39. Nd7 {[%emt 0:00:33]} Qc8 {[%emt 0:02:26]} 40. Qa8 {[%emt 0:00:04]} Qxa8 {[%emt 0:00:18]} 41. Bxa8 {[%emt 0:50:03]} Kg8 {[%emt 0:50:27]} 42. b4 {[%emt 0:00:08]} Kf7 {[%emt 0:00:13]} 43. Nc5 {[%emt 0:00:05]} Ke7 {[%emt 0:00:23]} 44. Nd3 {[%emt 0:00:05]} Kd7 {[%emt 0:01:43]} 45. Kg2 {[%emt 0:00:02]} Kc7 {[%emt 0:00:16]} 46. b5 {[%emt 0:00:05]} Kb8 {[%emt 0:00:07]} 47. Be4 {[%emt 0:00:04]} Kc7 {[%emt 0:00:13]} 48. Bxh7 {[%emt 0:00:05]} Kb6 {[%emt 0:00:09]} 49. Bg8 {[%emt 0:00:02]} Kxb5 {[%emt 0:00:17]} 50. Bxe6 {[%emt 0:00:02]} Kc6 {[%emt 0:00:44]} 51. f4 {[%emt 0:00:04]} Kd6 {[%emt 0:00:11]} 52. Bc4 {[%emt 0:00:02]} Ke7 {[%emt 0:00:14]} 53. Kf3 {[%emt 0:00:04]} Kf8 {[%emt 0:00:07]} 54. Ke4 {[%emt 0:00:05]} Bg1 {[%emt 0:00:10]} 55. h4 {[%emt 0:00:02]} Bh2 {[%emt 0:00:11]} 56. Kf3 {[%emt 0:00:06]} Bg1 {[%emt 0:00:06]} 57. Nf2 {[%emt 0:00:01]} g6 {[%emt 0:00:41]} 58. Kg2 {[%emt 0:00:04]} Bxf2 {[%emt 0:00:10]} 59. Kxf2 {[%emt 0:00:02]} Kg7 {[%emt 0:00:10]} 60. Kf3 {[%emt 0:00:04]} Kh6 {[%emt 0:00:08]} 61. Kg4 {[%emt 0:00:04]} Kg7 {[%emt 0:00:09]} 62. Kg5 {[%emt 0:00:04]} Kh8 {[%emt 0:00:03]} 63. Kh6 {[%emt 0:00:06]} g5 {[%emt 0:00:12]} 64. g4 {[%emt 0:00:05]} gxh4 {[%emt 0:00:37]} 65. g5 {[%emt 0:00:03]} h3 {[%emt 0:00:13]} 66. g6 {[%emt 0:00:02]} h2 {[%emt 0:00:09]} 67. Bd5 {[%emt 0:00:13]} h1=Q+ {[%emt 0:00:22]} 68. Bxh1 {[%emt 0:00:02]} Kg8 {[%emt 0:00:12]} 69. g7 {[%emt 0:00:03]} Kf7 {[%emt 0:00:08]} 70. Kh7 {[%emt 0:00:04]} Kf6 {[%emt 0:00:08]} 71. Be4 {[%emt 0:00:04]} Ke7 {[%emt 0:00:22]} 72. Kg6 {[%emt 0:00:11]} Kd6 {[%emt 0:01:01]} 73. g8=N {[%emt 0:00:06]} Kc5 {[%emt 0:00:09]} 74. Nf6 {[%emt 0:00:04]} Kd4 {[%emt 0:00:06]} 75. Kf5 {[%emt 0:00:03]} Ke3 {[%emt 0:00:10]} 76. Ke5 {[%emt 0:00:04]} Kf2 {[%emt 0:00:09]} 77. Nh5 {[%emt 0:00:06]} Ke3 {[%emt 0:00:05]} 78. f5 {[%emt 0:00:06]} Kd2 {[%emt 0:00:02]} 79. Kd4 {[%emt 0:00:03]} Ke2 {[%emt 0:00:16]} 80. Bd5 {[%emt 0:00:27]} Kf2 {[%emt 0:00:06]} 81. Kd3 {[%emt 0:00:06]} Kg1 {[%emt 0:00:07]} 82. f6 {[%emt 0:00:43]} Kh2 {[%emt 0:00:05]} 83. Be6 {[%emt 0:00:03]} Kg2 {[%emt 0:00:09]} 84. Ke2 {[%emt 0:00:06]} Kg1 {[%emt 0:00:08]} 85. Bg4 {[%emt 0:01:01]} Kg2 {[%emt 0:00:07]} 86. f7 {[%emt 0:00:03]} Kg1 {[%emt 0:00:08]} 87. Nf4 {[%emt 0:00:13]} Kh2 {[%emt 0:00:07]} 88. Kf2 {[%emt 0:00:04]} Kh1 {[%emt 0:00:09]} 89. Bh3 {[%emt 0:00:12]} Kh2 {[%emt 0:00:05]} 90. f8=R {[%emt 0:00:06]} Kh1 {[%emt 0:00:15]} 91. Rh8 {[%emt 0:00:07]} Kh2 {[%emt 0:00:00]} 92. Nd5 {[%emt 0:00:11]} Kh1 {[%emt 0:00:07]} 93. Ne3 {[%emt 0:00:09]} Kh2 {[%emt 0:00:06]} 94. Nf1+ {[%emt 0:00:04]} Kh1 {[%emt 0:00:11]} 95. Bg2# {[%emt 0:00:02]} 1-0

[Event "Caplin Hastings Masters 2023-24"]
[Site "Hastings"]
[Date "2023.12.29"]
[Round "2.24"]
[White "Fischer, Daniel"]
[Black "Keely, Leo A"]
[Result "1-0"]
[ECO "C42"]
[WhiteElo "2341"]
[BlackElo "1908"]
[Annotator "ChessBase"]
[PlyCount "89"]
[EventDate "2023.12.18"]
[EventType "swiss"]
[EventCountry "ENG"]
[SourceTitle "playchess.com"]
[Source "ChessBase"]
[SourceQuality "1"]
[TimeControl "40/6000+30:3000+30"]

1. e4 {[%emt 0:00:03]} e5 {[%emt 0:00:10]} 2. Nf3 {[%emt 0:00:04]} Nf6 {[%emt 0:00:13]} 3. Nxe5 {[%emt 0:00:09]} d6 {[%emt 0:00:23]} 4. Nf3 {[%emt 0:00:07]} Nxe4 {[%emt 0:00:13]} 5. Nc3 {[%emt 0:00:10]} Nxc3 {[%emt 0:00:42]} 6. dxc3 {[%emt 0:00:05]} Be7 {[%emt 0:01:28]} 7. Be3 {[%emt 0:00:05]} Nc6 {[%emt 0:02:07]} 8. Qd2 Be6 {[%emt 0:07:13]} 9. O-O-O {[%emt 0:03:58]} Qd7 {[%emt 0:09:25]} 10. Kb1 {[%emt 0:00:22]} a6 {[%emt 0:03:18]} 11. Be2 {[%emt 0:05:04]} O-O-O {[%emt 0:14:15]} 12. Rhe1 {[%emt 0:15:40]} Bf6 {[%emt 0:02:43]} 13. Nd4 {[%emt 0:06:58]} Nxd4 {[%emt 0:09:43]} 14. Bxd4 {[%emt 0:00:05]} Bxd4 {[%emt 0:05:37]} 15. Qxd4 {[%emt 0:00:06]} c5 {[%emt 0:00:13]} 16. Qxg7 {[%emt 0:10:18]} Qa4 {[%emt 0:03:08]} 17. b3 {[%emt 0:12:24]} Qa5 {[%emt 0:06:04]} 18. Qf6 {[%emt 0:03:42]} Rhg8 {[%emt 0:01:09]} 19. g3 {[%emt 0:02:47]} b5 {[%emt 0:06:13]} 20. Kb2 {[%emt 0:01:54]} Qb6 {[%emt 0:02:43]} 21. Bf3 {[%emt 0:02:28]} b4 {[%emt 0:05:47]} 22. c4 {[%emt 0:02:16]} Kc7 {[%emt 0:05:20]} 23. Bd5 {[%emt 0:02:23]} Rg6 {[%emt 0:01:27]} 24. Qf4 {[%emt 0:02:36]} Rd7 {[%emt 0:01:16]} 25. Rd3 {[%emt 0:06:42]} Qb8 {[%emt 0:00:56]} 26. Bf3 {[%emt 0:02:15]} Qh8+ {[%emt 0:00:52]} 27. Kb1 {[%emt 0:00:06]} Qf6 {[%emt 0:02:01]} 28. Qe4 {[%emt 0:02:32]} Kd8 {[%emt 0:04:12]} 29. Qc6 {[%emt 0:03:28]} Ke7 {[%emt 0:01:36]} 30. Red1 {[%emt 0:02:04]} Bf5 {[%emt 0:01:49]} 31. Be4 {[%emt 0:02:17]} Bxe4 {[%emt 0:02:08]} 32. Qxe4+ {[%emt 0:00:05]} Kf8 {[%emt 0:00:13]} 33. Qc6 {[%emt 0:05:11]} Rd8 {[%emt 0:01:43]} 34. f4 {[%emt 0:02:56]} Qe7 {[%emt 0:03:45]} 35. f5 {[%emt 0:03:15]} Rh6 {[%emt 0:00:59]} 36. h4 {[%emt 0:01:03]} Qe5 {[%emt 0:02:47]} 37. Qf3 {[%emt 0:04:21]} Qf6 {[%emt 0:00:23]} 38. Rd5 {[%emt 0:01:32]} a5 {[%emt 0:01:08]} 39. Qd3 {[%emt 0:01:51]} Ke8 {[%emt 0:01:35]} 40. Qe3+ {[%emt 0:02:09]} Kf8 {[%emt 0:01:03]} 41. Qf4 {[%emt 0:11:34]} Ke8 {[%emt 0:08:30]} 42. Qd2 {[%emt 0:03:30]} Rh5 {[%emt 0:04:45]} 43. Qe2+ {[%emt 0:00:11]} Kf8 {[%emt 0:01:22]} 44. Qxh5 {[%emt 0:00:13]} a4 {[%emt 0:00:04]} 45. Qg5 {[%emt 0:01:10]} 1-0

[Event "Caplin Hastings Masters 2023-24"]
[Site "Hastings"]
[Date "2023.12.29"]
[Round "2.25"]
[White "Howell, Oliver W"]
[Black "Sarkar, Justin"]
[Result "1/2-1/2"]
[ECO "D03"]
[WhiteElo "1782"]
[BlackElo "2272"]
[Annotator "ChessBase"]
[PlyCount "48"]
[EventDate "2023.12.18"]
[EventType "swiss"]
[EventCountry "ENG"]
[SourceTitle "playchess.com"]
[Source "ChessBase"]
[SourceQuality "1"]
[TimeControl "40/6000+30:3000+30"]

1. Nf3 {[%emt 0:00:03]} d5 {[%emt 0:01:39]} 2. d4 {[%emt 0:00:10]} Nf6 {[%emt 0:01:06]} 3. Bg5 {[%emt 0:00:07]} Nbd7 {[%emt 0:00:20]} 4. e3 {[%emt 0:01:27]} e6 {[%emt 0:02:55]} 5. Bd3 {[%emt 0:02:05]} Be7 {[%emt 0:01:55]} 6. Nbd2 {[%emt 0:00:59]} h6 {[%emt 0:01:00]} 7. Bh4 {[%emt 0:00:25]} c5 {[%emt 0:04:49]} 8. c3 {[%emt 0:00:23]} b6 {[%emt 0:00:36]} 9. O-O {[%emt 0:01:00]} Bb7 {[%emt 0:00:17]} 10. Ne5 {[%emt 0:02:38]} Nxe5 {[%emt 0:02:35]} 11. dxe5 {[%emt 0:05:12]} Nd7 {[%emt 0:00:09]} 12. Bxe7 {[%emt 0:00:35]} Qxe7 {[%emt 0:00:10]} 13. f4 {[%emt 0:03:34]} O-O {[%emt 0:01:55]} 14. Qh5 {[%emt 0:05:51]} Qe8 {[%emt 0:22:31]} 15. e4 {[%emt 0:19:00]} dxe4 {[%emt 0:31:32]} 16. Nxe4 {[%emt 0:10:32]} Bxe4 {[%emt 0:00:09]} 17. Bxe4 {[%emt 0:00:07]} f5 {[%emt 0:00:06]} 18. Qxe8 {[%emt 0:01:23]} Raxe8 {[%emt 0:00:05]} 19. Bc6 {[%emt 0:03:19]} Rd8 {[%emt 0:00:10]} 20. Rad1 {[%emt 0:02:36]} Nb8 {[%emt 0:00:09]} 21. Bb5 {[%emt 0:04:44]} Kf7 {[%emt 0:00:53]} 22. a4 {[%emt 0:02:35]} Ke7 {[%emt 0:01:59]} 23. Kf2 {[%emt 0:06:22]} Rxd1 {[%emt 0:01:19]} 24. Rxd1 {[%emt 0:00:08]} Rd8 {[%emt 0:00:07]} 1/2-1/2

[Event "Caplin Hastings Masters 2023-24"]
[Site "Hastings"]
[Date "2023.12.29"]
[Round "2.26"]
[White "Byron, Alan M"]
[Black "Ortiz Sanchez, Luis"]
[Result "1/2-1/2"]
[ECO "B31"]
[WhiteElo "2134"]
[BlackElo "1863"]
[Annotator "NA"]
[PlyCount "81"]
[EventDate "2023.12.18"]
[EventType "swiss"]
[EventCountry "ENG"]
[SourceTitle "playchess.com"]
[Source "ChessBase"]
[SourceQuality "1"]
[TimeControl "40/6000+30:3000+30"]

1. e4 {[%emt 0:00:12]} c5 {[%emt 0:00:19]} 2. Nf3 {[%emt 0:00:16]} Nc6 {[%emt 0:00:09]} 3. Bb5 {[%emt 0:00:14]} g6 {[%emt 0:00:22]} 4. Bxc6 {[%emt 0:00:41]} dxc6 {[%emt 0:00:11]} 5. d3 {[%emt 0:00:07]} Bg7 {[%emt 0:00:59]} 6. h3 {[%emt 0:00:45]} Nf6 {[%emt 0:00:35]} 7. O-O {[%emt 0:01:29]} Nd7 {[%emt 0:01:11]} 8. Nc3 {[%emt 0:00:36]} e5 {[%emt 0:00:20]} 9. Be3 {[%emt 0:00:24]} b6 10. Qd2 {[%emt 0:00:48]} h6 {[%emt 0:00:28]} 11. Nh2 {[%emt 0:02:08]} Nf8 {[%emt 0:01:39]} 12. f4 {[%emt 0:09:18]} exf4 {[%emt 0:00:56]} 13. Bxf4 {[%emt 0:00:03]} Ne6 {[%emt 0:01:55]} 14. Be3 {[%emt 0:01:01]} Nd4 {[%emt 0:10:45]} 15. Rf2 {[%emt 0:08:43]} Be6 {[%emt 0:06:26]} 16. Nd1 {[%emt 0:03:19]} Qd7 {[%emt 0:30:38]} 17. c3 {[%emt 0:02:19]} Nb5 {[%emt 0:00:08]} 18. a4 {[%emt 0:15:41]} Nc7 {[%emt 0:01:19]} 19. Nf3 {[%emt 0:05:41]} Rd8 {[%emt 0:03:31]} 20. d4 {[%emt 0:05:05]} cxd4 {[%emt 0:03:01]} 21. Bxd4 {[%emt 0:07:23]} O-O {[%emt 0:01:50]} 22. a5 {[%emt 0:04:04]} c5 {[%emt 0:03:59]} 23. Bxg7 {[%emt 0:00:30]} Qxd2 {[%emt 0:02:44]} 24. Nxd2 {[%emt 0:00:17]} Kxg7 {[%emt 0:00:15]} 25. axb6 {[%emt 0:01:17]} axb6 {[%emt 0:00:14]} 26. Ra7 {[%emt 0:01:32]} Rd7 {[%emt 0:01:44]} 27. Ne3 {[%emt 0:01:12]} b5 {[%emt 0:04:45]} 28. Nf3 {[%emt 0:06:45]} f6 {[%emt 0:05:23]} 29. Rd2 {[%emt 0:03:30]} Rff7 {[%emt 0:02:06]} 30. Rb7 {[%emt 0:03:15]} Rfe7 {[%emt 0:07:56]} 31. Rb6 {[%emt 0:12:37]} Kf7 {[%emt 0:02:11]} 32. Rc6 {[%emt 0:02:52]} Rxd2 {[%emt 0:05:42]} 33. Nxd2 {[%emt 0:00:02]} c4 {[%emt 0:00:32]} 34. Rc5 {[%emt 0:05:05]} Ke8 {[%emt 0:02:11]} 35. Nc2 {[%emt 0:02:58]} Kd8 {[%emt 0:00:35]} 36. Nd4 {[%emt 0:00:19]} Bd7 {[%emt 0:00:01]} 37. Kf2 {[%emt 0:02:09]} Kc8 {[%emt 0:02:17]} 38. Nc6 {[%emt 0:02:53]} Bxc6 {[%emt 0:02:02]} 39. Rxc6 {[%emt 0:00:32]} Re6 {[%emt 0:00:08]} 40. Rxe6 {[%emt 0:00:25]} Nxe6 {[%emt 0:00:47]} 41. b3 {[%emt 0:00:33]} 1/2-1/2

[Event "Caplin Hastings Masters 2023-24"]
[Site "Hastings"]
[Date "2023.12.29"]
[Round "2.27"]
[White "Verbytski, Oleg"]
[Black "Walker, Martin G"]
[Result "1/2-1/2"]
[ECO "C11"]
[WhiteElo "1771"]
[BlackElo "2090"]
[Annotator "NA"]
[PlyCount "62"]
[EventDate "2023.12.18"]
[EventType "swiss"]
[EventCountry "ENG"]
[SourceTitle "playchess.com"]
[Source "ChessBase"]
[SourceQuality "1"]
[TimeControl "40/6000+30:3000+30"]

1. e4 {[%emt 0:00:01]} Nf6 {[%emt 0:00:05]} 2. Nc3 {[%emt 0:00:06]} d5 {[%emt 0:00:05]} 3. e5 {[%emt 0:00:03]} Nfd7 {[%emt 0:00:05]} 4. d4 {[%emt 0:00:03]} c5 {[%emt 0:00:26]} 5. f4 {[%emt 0:00:06]} cxd4 {[%emt 0:00:23]} 6. Nb5 {[%emt 0:00:06]} e6 {[%emt 0:01:27]} 7. Nxd4 {[%emt 0:00:10]} Nc6 {[%emt 0:00:13]} 8. Ngf3 {[%emt 0:00:20]} Qb6 {[%emt 0:03:09]} 9. c3 {[%emt 0:00:50]} Be7 {[%emt 0:05:10]} 10. Be2 {[%emt 0:00:44]} O-O {[%emt 0:02:26]} 11. O-O {[%emt 0:00:22]} Nc5 {[%emt 0:01:34]} 12. Rb1 {[%emt 0:03:40]} Bd7 {[%emt 0:01:47]} 13. Be3 {[%emt 0:00:26]} Ne4 {[%emt 0:02:41]} 14. Bd3 {[%emt 0:01:51]} Rac8 {[%emt 0:04:07]} 15. Bxe4 {[%emt 0:01:02]} dxe4 {[%emt 0:00:10]} 16. Nd2 {[%emt 0:00:13]} Nxd4 {[%emt 0:04:32]} 17. Bxd4 {[%emt 0:00:16]} Qa6 {[%emt 0:01:54]} 18. Nxe4 {[%emt 0:03:34]} Bc6 {[%emt 0:12:07]} 19. Nf6+ {[%emt 0:05:16]} Kh8 {[%emt 0:08:46]} 20. Nh5 {[%emt 0:00:52]} Qxa2 {[%emt 0:03:02]} 21. Qg4 {[%emt 0:01:24]} Rg8 {[%emt 0:00:49]} 22. Qh3 {[%emt 0:10:47]} Be4 {[%emt 0:14:02]} 23. Rbe1 {[%emt 0:01:39]} Bg6 {[%emt 0:15:36]} 24. Rf2 {[%emt 0:01:06]} Bxh5 {[%emt 0:08:50]} 25. Qxh5 {[%emt 0:00:07]} g6 {[%emt 0:00:04]} 26. Qf3 {[%emt 0:04:17]} Qa6 {[%emt 0:01:06]} 27. Rd1 {[%emt 0:01:45]} Rgd8 {[%emt 0:00:13]} 28. h3 {[%emt 0:07:10]} Rd5 {[%emt 0:03:00]} 29. Rfd2 {[%emt 0:03:26]} Rcd8 {[%emt 0:01:25]} 30. Qf2 {[%emt 0:00:29]} Qa4 {[%emt 0:01:04]} 31. Kh2 {[%emt 0:04:57]} a6 {[%emt 0:08:47]} 1/2-1/2

[Event "Caplin Hastings Masters 2023-24"]
[Site "Hastings"]
[Date "2023.12.29"]
[Round "2.28"]
[White "Han, Qixuan"]
[Black "Lahlum, Hans Olav"]
[Result "1/2-1/2"]
[ECO "A06"]
[WhiteElo "1603"]
[BlackElo "2037"]
[Annotator "NA"]
[PlyCount "99"]
[EventDate "2023.12.18"]
[EventType "swiss"]
[EventCountry "ENG"]
[SourceTitle "playchess.com"]
[Source "ChessBase"]
[SourceQuality "1"]
[TimeControl "40/6000+30:3000+30"]

1. b3 {[%emt 0:00:03]} d5 {[%emt 0:00:08]} 2. Bb2 {[%emt 0:00:05]} c5 {[%emt 0:00:06]} 3. e3 {[%emt 0:00:06]} a6 {[%emt 0:00:32]} 4. Nf3 {[%emt 0:00:12]} Nc6 5. d4 {[%emt 0:00:20]} cxd4 {[%emt 0:03:50]} 6. exd4 {[%emt 0:00:43]} Bg4 {[%emt 0:02:24]} 7. Nbd2 {[%emt 0:02:15]} e6 {[%emt 0:01:00]} 8. a3 {[%emt 0:01:07]} Nf6 {[%emt 0:03:52]} 9. Bd3 {[%emt 0:02:14]} Bd6 {[%emt 0:00:22]} 10. O-O {[%emt 0:00:28]} Qc7 {[%emt 0:06:22]} 11. h3 {[%emt 0:00:25]} Bh5 {[%emt 0:00:13]} 12. Re1 {[%emt 0:02:20]} O-O {[%emt 0:02:40]} 13. c4 {[%emt 0:01:56]} Bf4 {[%emt 0:05:27]} 14. Qc2 {[%emt 0:02:01]} Rfd8 {[%emt 0:06:59]} 15. c5 {[%emt 0:01:41]} Bg6 {[%emt 0:07:39]} 16. Bxg6 {[%emt 0:01:46]} hxg6 {[%emt 0:00:04]} 17. b4 {[%emt 0:01:18]} b5 {[%emt 0:07:10]} 18. Nb3 {[%emt 0:02:41]} Qb7 {[%emt 0:06:31]} 19. Bc1 {[%emt 0:01:31]} Bc7 {[%emt 0:05:13]} 20. Bd2 {[%emt 0:04:01]} Ne4 {[%emt 0:01:12]} 21. Reb1 {[%emt 0:02:50]} Rdb8 {[%emt 0:04:00]} 22. Be1 {[%emt 0:03:39]} e5 {[%emt 0:09:23]} 23. dxe5 {[%emt 0:01:45]} Nxe5 {[%emt 0:01:33]} 24. Nxe5 {[%emt 0:01:02]} Bxe5 {[%emt 0:00:05]} 25. Na5 {[%emt 0:00:55]} Qc7 {[%emt 0:03:38]} 26. Ra2 {[%emt 0:00:28]} Rd8 {[%emt 0:03:33]} 27. Rd1 {[%emt 0:01:34]} Nf6 {[%emt 0:03:19]} 28. Qe2 {[%emt 0:02:51]} d4 {[%emt 0:04:14]} 29. Nc6 {[%emt 0:02:48]} Qxc6 {[%emt 0:03:18]} 30. Qxe5 {[%emt 0:00:30]} Rd5 {[%emt 0:00:44]} 31. Qf4 {[%emt 0:01:59]} Rad8 {[%emt 0:01:58]} 32. Rd3 {[%emt 0:01:15]} Qe6 {[%emt 0:00:25]} 33. Kf1 {[%emt 0:00:50]} Re5 {[%emt 0:05:38]} 34. Ra1 {[%emt 0:00:48]} Re4 {[%emt 0:02:50]} 35. Qd2 {[%emt 0:00:56]} Qd5 {[%emt 0:10:00]} 36. Rd1 {[%emt 0:00:34]} Qc4 {[%emt 0:00:26]} 37. Rc1 {[%emt 0:00:59]} Qd5 {[%emt 0:00:16]} 38. f3 {[%emt 0:00:35]} Re7 {[%emt 0:01:41]} 39. Bf2 {[%emt 0:00:11]} Qe5 {[%emt 0:00:39]} 40. Rxd4 {[%emt 0:01:05]} Rxd4 {[%emt 0:00:30]} 41. Qxd4 {[%emt 0:50:16]} Qe2+ {[%emt 0:01:02]} 42. Kg1 {[%emt 0:00:00]} Rd7 {[%emt 0:01:39]} 43. Qe3 {[%emt 0:00:00]} Rd1+ {[%emt 0:01:00]} 44. Rxd1 {[%emt 0:00:00]} Qxd1+ {[%emt 0:00:02]} 45. Qe1 {[%emt 0:00:00]} Qc2 {[%emt 0:04:53]} 46. Be3 {[%emt 0:00:00]} Nd5 {[%emt 0:00:43]} 47. Qc1 {[%emt 0:00:00]} Qf5 {[%emt 0:07:41]} 48. c6 {[%emt 0:00:00]} Qc8 {[%emt 0:02:41]} 49. Bf2 {[%emt 0:00:00]} Qc7 {[%emt 0:00:43]} 50. Qc5 {[%emt 0:00:00]} 1/2-1/2

[Event "Caplin Hastings Masters 2023-24"]
[Site "Hastings"]
[Date "2023.12.29"]
[Round "2.29"]
[White "Kovalskyi, Roman"]
[Black "Ahn, Sungmin"]
[Result "1-0"]
[ECO "B41"]
[WhiteElo "2009"]
[BlackElo "1836"]
[Annotator "NA"]
[PlyCount "63"]
[EventDate "2023.12.18"]
[EventType "swiss"]
[EventCountry "ENG"]
[SourceTitle "playchess.com"]
[Source "ChessBase"]
[SourceQuality "1"]
[TimeControl "40/6000+30:3000+30"]

1. e4 {[%emt 0:04:12]} c5 {[%emt 0:00:20]} 2. Nf3 {[%emt 0:00:06]} e6 {[%emt 0:00:18]} 3. d4 {[%emt 0:00:07]} cxd4 {[%emt 0:00:02]} 4. Nxd4 {[%emt 0:00:08]} a6 {[%emt 0:00:02]} 5. c4 {[%emt 0:00:07]} Nf6 {[%emt 0:00:15]} 6. Nc3 {[%emt 0:00:06]} Qc7 {[%emt 0:00:03]} 7. a3 {[%emt 0:00:08]} b6 {[%emt 0:00:06]} 8. f4 {[%emt 0:00:32]} Bb7 {[%emt 0:08:02]} 9. Bd3 {[%emt 0:01:55]} d6 {[%emt 0:00:49]} 10. O-O {[%emt 0:07:53]} Be7 {[%emt 0:04:18]} 11. Qe2 {[%emt 0:04:26]} Nbd7 {[%emt 0:00:36]} 12. b4 {[%emt 0:05:21]} b5 {[%emt 0:07:38]} 13. cxb5 {[%emt 0:05:12]} Qxc3 {[%emt 0:01:48]} 14. Be3 {[%emt 0:00:22]} Qc8 {[%emt 0:11:21]} 15. Rfc1 {[%emt 0:06:12]} Nc5 {[%emt 0:15:55]} 16. bxc5 {[%emt 0:32:00]} dxc5 {[%emt 0:00:15]} 17. Nb3 {[%emt 0:00:47]} Bxe4 {[%emt 0:35:25]} 18. Bxc5 {[%emt 0:14:21]} Bxd3 {[%emt 0:03:40]} 19. Qxd3 {[%emt 0:00:07]} Qb7 {[%emt 0:04:39]} 20. bxa6 {[%emt 0:14:09]} Qxa6 {[%emt 0:03:26]} 21. Qxa6 {[%emt 0:00:33]} Rxa6 {[%emt 0:00:10]} 22. Bxe7 {[%emt 0:00:08]} Kxe7 {[%emt 0:00:00]} 23. Rc7+ {[%emt 0:00:07]} Kd6 {[%emt 0:09:13]} 24. Rxf7 {[%emt 0:00:09]} Rha8 {[%emt 0:00:18]} 25. Rd1+ {[%emt 0:06:52]} Nd5 {[%emt 0:00:22]} 26. Nd4 {[%emt 0:00:06]} Rb8 {[%emt 0:02:36]} 27. Rxg7 {[%emt 0:07:09]} Rxa3 {[%emt 0:00:36]} 28. Rxh7 {[%emt 0:00:11]} Rb2 {[%emt 0:00:39]} 29. Rh6 {[%emt 0:00:54]} Rxg2+ {[%emt 0:01:24]} 30. Kxg2 {[%emt 0:00:27]} Ne3+ {[%emt 0:00:09]} 31. Kg1 {[%emt 0:00:37]} Nxd1 {[%emt 0:00:12]} 32. Nb5+ {[%emt 0:00:04]} 1-0